bitfinex/quotes_ETHUSD_20241103
["timestamp","ask_amount","ask_price","bid_price","bid_amount"]
[1730674391799,4.41132,2464.0,2463.8,0.16341715]
[1730674391994,4.41132,2464.0,2463.7,0.06551474]
[1730674392253,4.41132,2464.0,2463.9,0.06547782]
[1730674392461,4.41132,2464.0,2463.8,0.06549628]
[1730674392614,4.41132,2464.0,2463.9,0.06547782]
[1730674392935,4.41132,2464.0,2463.7,0.16343886]
[1730674393117,4.41132,2464.0,2463.9,0.06560498]
[1730674393317,4.41132,2464.0,2463.9,0.16344636]
[1730674393653,4.41132,2464.0,2463.9,0.22905134]
[1730674394218,4.41132,2464.0,2463.9,0.06560498]
[1730674394418,4.41132,2464.0,2463.9,0.16345162]
[1730674394731,4.41132,2464.0,2463.9,0.06555411]
[1730674394948,6.11790409,2464.5,2463.9,0.8056]
[1730674395161,0.7843,2464.5,2464.1,3.6524]
[1730674395359,3.65171,2464.6,2464.2,0.96905473]
[1730674395519,3.65171,2464.6,2464.2,0.87103138]
[1730674395721,3.65171,2464.6,2464.3,0.16338423]
[1730674396028,3.65171,2464.6,2464.3,0.06541293]
[1730674396224,3.65163,2464.7,2464.3,0.22872664]
[1730674396421,3.65163,2464.7,2464.3,0.16331371]
[1730674396614,3.65163,2464.7,2464.4,0.06525279]
[1730674398541,4.43567,2464.9,2464.5,0.8056]
[1730674398542,8.08701,2464.9,2464.5,0.8056]
[1730674398711,3.65171,2464.6,2464.5,0.06521618]
[1730674398913,3.65171,2464.6,2464.2,0.55]
[1730674399115,3.65171,2464.6,2464.5,0.06521618]
[1730674399368,3.65171,2464.6,2464.2,0.55]
[1730674399530,3.65171,2464.6,2464.5,0.06521618]
[1730674399737,3.65171,2464.6,2464.2,1.46913643]
[1730674399941,3.65171,2464.6,2464.5,0.06521618]
[1730674400264,3.65171,2464.6,2464.2,1.46913643]
[1730674400637,3.65171,2464.6,2464.3,0.06525309]
[1730674400839,3.65171,2464.6,2464.2,1.46913643]
[1730674401033,3.65171,2464.6,2464.3,1.02318583]
[1730674401375,4.43597,2464.7,2464.3,1.02318583]
[1730674402667,8.08764,2464.7,2464.3,1.02318583]
[1730674402962,4.43595,2464.7,2464.3,1.02318583]
[1730674403638,8.08763,2464.7,2464.3,1.02318583]
[1730674403836,4.43595,2464.7,2464.3,1.02318583]
[1730674404051,8.08761,2464.7,2464.3,1.02318583]
[1730674404421,4.43595,2464.7,2464.3,1.02318583]
[1730674404626,8.08764,2464.7,2464.3,1.02318583]
[1730674404867,4.43595,2464.7,2464.3,1.02318583]
[1730674405740,8.08762,2464.7,2464.3,1.02318583]
[1730674407867,7.30332,2464.7,2464.3,1.02318583]
[1730674408810,3.65195,2464.5,2464.3,0.06524219]
[1730674409105,3.652,2464.4,2464.0,0.8099]
[1730674409397,3.65218,2464.3,2464.0,0.8099]
[1730674410886,3.65233,2464.2,2464.0,0.8099]
[1730674415500,3.65198,2464.5,2464.0,0.8099]
[1730674415713,7.30439,2464.3,2464.0,0.8099]
[1730674415880,3.65216,2464.3,2464.0,0.8099]
[1730674416419,3.65216,2464.3,2463.9,3.65274]
[1730674417175,0.8159,2464.2,2463.9,3.65274]
[1730674417680,3.65216,2464.3,2463.9,3.65274]
[1730674420023,3.65234,2464.2,2463.8,4.46279]
[1730674421270,3.65234,2464.2,2463.9,0.06526149]
[1730674421470,3.65259,2464.0,2463.9,0.06526149]
[1730674421711,3.65259,2464.0,2463.6,0.7842]
[1730674422012,3.65259,2464.0,2463.9,0.06526149]
[1730674422184,3.65259,2464.0,2463.6,0.7842]
[1730674422392,3.65259,2464.0,2463.9,0.06526149]
[1730674422904,3.65259,2464.0,2463.9,0.06308611]
[1730674423082,3.65259,2464.0,2463.6,0.70559549]
[1730674423711,3.65259,2464.0,2463.7,0.06312303]
[1730674424682,3.65286,2463.9,2463.7,0.06312303]
[1730674428182,3.65289,2463.8,2463.7,0.06312303]
[1730674428528,3.65371,2463.3,2462.9,0.7842]
[1730674428730,3.65371,2463.3,2462.9,0.94729931]
[1730674428902,3.65371,2463.3,2463.0,0.0591231]
[1730674429295,4.460054,2463.3,2463.0,0.0591231]
[1730674429490,3.65388,2463.2,2463.0,0.0591231]
[1730674429691,3.65393,2463.1,2463.0,0.0591231]
[1730674430735,0.806344,2463.3,2463.0,0.0591231]
[1730674431029,0.7563,2463.7,2463.0,0.0591231]
[1730674431206,3.65334,2463.5,2463.0,0.0591231]
[1730674431418,3.65348,2463.4,2463.0,0.0591231]
[1730674431816,3.65334,2463.5,2463.0,0.0591231]
[1730674432093,3.65334,2463.5,2463.0,3.7131831]
[1730674433022,3.65351,2463.4,2463.0,0.0591231]
[1730674437405,4.384195,2463.4,2463.0,0.0591231]
[1730674437833,4.44765,2463.3,2462.9,4.3534201]
[1730674438038,4.44765,2463.3,2463.1,0.05354]
[1730674438242,4.44765,2463.3,2463.0,0.05355847]
[1730674438442,4.44765,2463.3,2463.2,0.05352153]
[1730674438637,1.6771845,2463.3,2463.1,0.05354]
[1730674438939,3.65378,2463.2,2462.9,0.6993101]
[1730674440240,5.3308345,2463.3,2462.9,0.6993101]
[1730674440428,3.65351,2463.4,2462.9,0.6993101]
[1730674440624,3.65351,2463.4,2462.9,4.3534301]
[1730674441455,3.65351,2463.4,2462.9,8.0075801]
[1730674441745,3.65351,2463.4,2462.9,8.0075701]
[1730674442128,3.65351,2463.4,2462.9,4.3534301]
[1730674443037,3.65351,2463.4,2462.9,8.0075801]
[1730674443846,3.65351,2463.4,2462.9,4.3534301]
[1730674445569,3.65351,2463.4,2463.0,0.05385651]
[1730674451375,3.65371,2463.3,2463.0,0.05385651]
[1730674451791,3.65351,2463.4,2463.0,0.05385651]
[1730674452335,7.30714,2463.4,2463.0,0.05385651]
[1730674452586,3.65365,2463.3,2463.0,0.05385651]
[1730674459647,3.50365,2463.3,2463.0,0.05385651]
[1730674462755,4.41705,2463.2,2463.0,0.05385651]
[1730674462965,3.65393,2463.1,2462.8,0.8274]
[1730674463146,3.65393,2463.1,2462.9,0.05419474]
[1730674464454,3.65408,2463.0,2462.9,0.05419474]
[1730674465026,3.65424,2462.9,2462.6,0.92775031]
[1730674465214,3.65424,2462.9,2462.6,0.92774812]
[1730674465563,4.385072,2462.9,2462.6,0.92774812]
[1730674465760,4.385072,2462.9,2462.1,1.6141409]
[1730674465761,4.46747,2462.8,2462.1,1.6141409]
[1730674466091,4.46747,2462.8,2462.2,4.35861475]
[1730674466288,3.65459,2462.7,2462.3,0.16310364]
[1730674466791,3.65459,2462.7,2462.4,0.05265682]
[1730674469606,3.65459,2462.7,2462.2,6.81835149]
[1730674469911,3.65459,2462.7,2462.3,0.05283893]
[1730674470269,3.65459,2462.7,2462.2,7.98777489]
[1730674470470,3.65459,2462.7,2462.4,0.05282045]
[1730674470695,4.46748,2462.8,2462.3,3.70786893]
[1730674470970,4.46748,2462.8,2462.4,0.05282045]
[1730674471165,3.65453,2462.7,2462.4,0.05282045]
[1730674471706,3.65453,2462.7,2462.2,7.98770489]
[1730674471707,3.65463,2462.7,2462.2,7.98770489]
[1730674472009,3.65463,2462.7,2462.3,1.04149591]
[1730674472180,3.65463,2462.7,2462.4,0.05282409]
[1730674472776,3.65468,2462.6,2462.4,0.05282409]
[1730674477314,3.65459,2462.7,2462.4,0.05282409]
[1730674480606,3.65472,2462.6,2462.4,0.05282409]
[1730674489211,3.65453,2462.7,2462.4,0.05282409]
[1730674491510,3.65453,2462.7,2462.2,3.65525]
[1730674491864,3.65453,2462.7,2462.3,3.70815106]
[1730674493108,0.8131,2462.8,2462.3,3.70815106]
[1730674493308,4.46747,2462.8,2462.4,3.65493]
[1730674493684,0.8131,2462.8,2462.5,0.05304322]
[1730674493811,3.65425,2462.9,2462.5,0.05304322]
[1730674495158,3.65425,2462.9,2462.6,0.05122026]
[1730674495365,3.65425,2462.9,2462.4,4.40748]
[1730674495657,3.65425,2462.9,2462.7,0.05119814]
[1730674495824,3.65425,2462.9,2462.4,8.06236]
[1730674496034,3.65425,2462.9,2462.8,0.05117967]
[1730674496552,3.65425,2462.9,2462.4,4.40748]
[1730674496739,3.65425,2462.9,2462.8,0.05117967]
[1730674497062,3.65425,2462.9,2462.4,4.40748]
[1730674497261,3.65425,2462.9,2462.8,0.05117967]
[1730674497467,3.65423,2462.9,2462.5,3.65474]
[1730674497674,3.65423,2462.9,2462.8,0.05117967]
[1730674497838,3.65423,2462.9,2462.5,3.65474]
[1730674498041,3.65423,2462.9,2462.8,0.05117603]
[1730674498243,3.65423,2462.9,2462.5,3.65474]
[1730674498440,3.65423,2462.9,2462.8,0.05117603]
[1730674498642,3.65423,2462.9,2462.5,3.65474]
[1730674499167,3.65423,2462.9,2462.6,0.05121298]
[1730674500282,8.09985,2463.0,2462.6,0.05121298]
[1730674500585,4.44566,2463.0,2462.6,0.05121298]
[1730674500874,8.09984,2463.0,2462.6,0.05121298]
[1730674501381,3.65427,2462.9,2462.6,0.05121298]
[1730674506391,3.65427,2462.9,2462.4,3.81793414]
[1730674506597,3.65427,2462.9,2462.7,0.8037363]
[1730674506771,3.65427,2462.9,2462.7,0.7526]
[1730674507094,3.65427,2462.9,2462.8,0.05111782]
[1730674507464,3.65427,2462.9,2462.7,0.7526]
[1730674507662,3.65427,2462.9,2462.8,0.05111782]
[1730674508075,3.65427,2462.9,2462.7,0.7526]
[1730674508279,3.65427,2462.9,2462.8,0.05108509]
[1730674508663,3.65427,2462.9,2462.7,0.7526]
[1730674508894,3.65427,2462.9,2462.8,0.05108509]
[1730674509223,3.65427,2462.9,2462.7,0.7526]
[1730674509386,3.65427,2462.9,2462.8,0.05108509]
[1730674509593,3.65427,2462.9,2462.7,0.7526]
[1730674509818,3.65427,2462.9,2462.8,0.05108509]
[1730674510021,3.65427,2462.9,2462.7,0.7526]
[1730674510220,3.65427,2462.9,2462.8,0.05108509]
[1730674510528,3.65427,2462.9,2462.7,0.7526]
[1730674510702,3.65427,2462.9,2462.8,0.05108509]
[1730674511419,3.65427,2462.9,2462.7,0.7526]
[1730674511617,3.65427,2462.9,2462.7,0.91590653]
[1730674511819,3.65427,2462.9,2462.8,0.05108509]
[1730674512130,3.65427,2462.9,2462.7,0.91595255]
[1730674512335,3.65427,2462.9,2462.8,0.05108509]
[1730674512694,3.65427,2462.9,2462.7,0.7526]
[1730674513029,3.65427,2462.9,2462.8,0.05108509]
[1730674513330,3.65427,2462.9,2462.7,0.7526]
[1730674513534,3.65427,2462.9,2462.8,0.05108509]
[1730674514129,3.65427,2462.9,2462.7,0.7526]
[1730674514339,3.65427,2462.9,2462.7,0.91595255]
[1730674514529,3.65427,2462.9,2462.8,0.05108509]
[1730674514712,3.65427,2462.9,2462.7,0.91595255]
[1730674514918,3.65427,2462.9,2462.7,0.7526]
[1730674515149,3.65404,2463.1,2462.8,0.05106693]
[1730674515150,3.65409,2463.0,2462.8,0.05106693]
[1730674515360,3.65409,2463.0,2462.7,0.7526]
[1730674515660,3.65409,2463.0,2462.9,0.05104845]
[1730674515829,3.65409,2463.0,2462.8,0.05106693]
[1730674516034,3.65409,2463.0,2462.7,0.7526]
[1730674516385,3.65409,2463.0,2462.8,0.05106693]
[1730674516675,3.65409,2463.0,2462.7,0.7526]
[1730674516953,3.65409,2463.0,2462.8,0.05106693]
[1730674517321,3.65409,2463.0,2462.9,0.05104845]
[1730674517536,3.65409,2463.0,2462.7,0.7526]
[1730674517824,3.65409,2463.0,2462.8,0.05106693]
[1730674518023,3.65409,2463.0,2462.7,0.7526]
[1730674518226,3.65409,2463.0,2462.9,0.05104845]
[1730674518526,3.65409,2463.0,2462.7,0.7526]
[1730674518735,3.65409,2463.0,2462.9,0.05104845]
[1730674519064,3.65409,2463.0,2462.9,0.05100845]
[1730674519420,3.65409,2463.0,2462.8,0.16328711]
[1730674519619,3.65409,2463.0,2462.9,0.05100845]
[1730674519815,3.65409,2463.0,2462.7,0.7526]
[1730674520020,3.65409,2463.0,2462.7,1.58493487]
[1730674520330,3.65409,2463.0,2462.8,0.05102692]
[1730674520530,3.65409,2463.0,2462.7,1.58493487]
[1730674520945,3.65409,2463.0,2462.8,0.05102692]
[1730674521462,3.65409,2463.0,2462.9,0.05100845]
[1730674521819,3.65409,2463.0,2462.7,1.58493487]
[1730674522031,3.65409,2463.0,2462.9,0.04933067]
[1730674522260,3.65409,2463.0,2462.7,1.58493487]
[1730674522261,3.65409,2463.0,2462.7,0.91588224]
[1730674522443,3.65409,2463.0,2462.9,0.04933067]
[1730674522667,3.65409,2463.0,2462.7,0.7526]
[1730674522958,3.65409,2463.0,2462.9,0.04933067]
[1730674523160,3.65409,2463.0,2462.8,0.21263458]
[1730674523319,3.65409,2463.0,2462.9,0.04933067]
[1730674523729,4.44534,2463.2,2462.9,0.04933067]
[1730674523939,4.44534,2463.2,2462.8,0.16328908]
[1730674524174,3.65401,2463.1,2462.9,0.04933067]
[1730674524381,3.65408,2463.0,2462.9,0.04933067]
[1730674531446,4.44534,2463.2,2462.9,0.04933067]
[1730674531644,3.65394,2463.1,2462.8,0.16331383]
[1730674531774,3.65394,2463.1,2462.9,0.04924338]
[1730674531967,3.65394,2463.1,2462.8,0.16331433]
[1730674532167,3.65394,2463.1,2462.9,0.04924338]
[1730674532490,3.65394,2463.1,2462.8,0.16332564]
[1730674532671,3.65394,2463.1,2462.9,0.16332564]
[1730674532876,3.65394,2463.1,2462.9,0.04924338]
[1730674532877,5.279208,2463.0,2462.9,0.04924338]
[1730674533076,5.279208,2463.0,2462.4,0.8494409]
[1730674533077,3.65453,2462.7,2462.5,0.16333193]
[1730674533305,3.65453,2462.7,2462.6,0.16333193]
[1730674535515,3.65453,2462.7,2462.6,0.16333941]
[1730674536961,4.46973,2462.7,2462.6,0.16333941]
[1730674537163,3.65493,2462.5,2462.1,4.11081004]
[1730674537392,3.65467,2462.6,2462.2,1.92572772]
[1730674537706,3.65467,2462.6,2462.1,1.11081004]
[1730674537707,3.65482,2462.5,2462.3,0.16331687]
[1730674537904,3.65482,2462.5,2462.4,0.16331687]
[1730674538067,3.65482,2462.5,2462.2,0.16331687]
[1730674538399,3.65482,2462.5,2462.3,0.16331687]
[1730674538604,3.65482,2462.5,2462.1,1.05744651]
[1730674538963,3.65482,2462.5,2462.2,0.163298]
[1730674539341,3.65482,2462.5,2462.1,1.0574768]
[1730674539403,3.65497,2462.4,2462.2,0.16330821]
[1730674539602,3.65497,2462.4,2462.3,0.16330821]
[1730674539837,3.65497,2462.4,2462.1,0.16330821]
[1730674540042,3.65497,2462.4,2462.2,0.16330821]
[1730674540215,3.65497,2462.4,2462.3,0.16330821]
[1730674540411,3.65497,2462.4,2462.1,0.16330821]
[1730674540617,3.65497,2462.4,2462.2,0.16330821]
[1730674540812,3.65497,2462.4,2462.3,0.16330821]
[1730674541045,3.65497,2462.4,2462.1,0.16330821]
[1730674541215,3.65497,2462.4,2462.3,0.04950395]
[1730674541418,5.171349,2462.4,2462.2,0.04952244]
[1730674541628,5.171349,2462.4,2462.2,0.16330821]
[1730674541815,5.171349,2462.4,2462.3,0.04954396]
[1730674542017,3.65511,2462.3,2462.2,0.16330821]
[1730674542219,3.65526,2462.2,2462.1,0.16330821]
[1730674542738,3.65526,2462.2,2461.8,4.89616011]
[1730674542739,3.65543,2462.1,2461.9,0.16330821]
[1730674542953,3.65543,2462.1,2462.0,0.16330821]
[1730674543164,3.65543,2462.1,2461.9,0.16330821]
[1730674543399,3.65543,2462.1,2461.9,0.16319255]
[1730674544823,3.65526,2462.2,2461.9,0.16319255]
[1730674545186,8.20843979,2462.2,2461.9,0.16319255]
[1730674545325,4.55309979,2462.2,2461.9,0.16319255]
[1730674545533,3.65526,2462.2,2461.9,0.16319255]
[1730674546648,3.65526,2462.2,2461.8,3.26095904]
[1730674546964,3.65526,2462.2,2461.9,0.16308312]
[1730674546965,3.65548,2462.1,2461.9,0.16308312]
[1730674547163,4.386554,2462.1,2461.7,2.88175938]
[1730674547464,3.65548,2462.1,2461.7,1.8256373]
[1730674547627,3.65548,2462.1,2461.7,6.5375564]
[1730674547828,7.31098,2462.1,2461.8,0.16308312]
[1730674548027,4.386578,2462.1,2461.7,0.16308312]
[1730674548233,3.65548,2462.1,2461.7,0.16308312]
[1730674548435,4.44088,2462.1,2461.7,0.16308312]
[1730674549234,0.7854,2461.9,2461.7,0.16308312]
[1730674549566,4.44149,2461.7,2461.2,3.9175379]
[1730674549723,4.44149,2461.7,2461.3,0.1630673]
[1730674549724,4.465895,2461.6,2461.3,0.1630673]
[1730674549919,3.65616,2461.6,2461.2,3.65668]
[1730674550978,7.31309,2461.4,2460.9,4.44259]
[1730674551176,7.31309,2461.4,2460.9,3.65719]
[1730674551741,3.65669,2461.3,2460.8,0.0609785]
[1730674551936,3.65669,2461.3,2460.8,3.88121758]
[1730674552143,3.65669,2461.3,2460.8,3.7182985]
[1730674552878,0.7854,2461.2,2460.8,3.7182985]
[1730674555582,3.65696,2461.1,2460.8,0.0609785]
[1730674556244,3.65696,2461.1,2460.9,0.04561491]
[1730674559810,4.44444,2461.0,2460.9,0.04561491]
[1730674565011,4.45444,2461.0,2460.9,0.04561491]
[1730674565313,4.44459,2460.9,2460.8,0.0609785]
[1730674565509,6.10714418,2460.9,2460.8,0.0609785]
[1730674566923,9.11714418,2460.9,2460.8,0.0609785]
[1730674567104,10.8422484,2460.9,2460.8,0.0609785]
[1730674582650,11.3922484,2460.9,2460.8,0.0609785]
[1730674584866,12.02881686,2460.9,2460.8,0.0609785]
[1730674585553,13.69137104,2460.9,2460.8,0.0609785]
[1730674585726,12.02881686,2460.9,2460.8,0.0609785]
[1730674585922,13.69137104,2460.9,2460.8,8.5e-06]
[1730674588169,3.65906,2459.7,2459.5,0.8736785]
[1730674588763,3.65906,2459.7,2459.6,0.04120336]
[1730674590258,3.65884,2459.8,2459.6,0.04120336]
[1730674590470,3.65884,2459.8,2459.7,0.8127]
[1730674590628,3.65884,2459.8,2459.7,0.85388484]
[1730674592262,3.65835,2460.2,2459.7,0.85388484]
[1730674592465,3.65854,2460.0,2459.8,0.8127]
[1730674592665,3.65854,2460.0,2459.9,0.0412132]
[1730674595323,3.65854,2460.0,2459.9,0.8539132]
[1730674599194,3.65853,2460.0,2459.9,0.8539132]
[1730674601190,7.3169,2460.1,2459.9,0.8539132]
[1730674602189,3.6584,2460.1,2459.9,0.8539132]
[1730674602703,7.31686,2460.1,2459.9,0.8539132]
[1730674603004,3.6584,2460.1,2459.9,0.8539132]
[1730674603698,7.31687,2460.1,2459.9,0.8539132]
[1730674604020,3.6584,2460.1,2459.9,0.8539132]
[1730674604174,7.3169,2460.1,2459.9,0.8539132]
[1730674605562,3.6584,2460.1,2459.9,0.8539132]
[1730674605763,7.31689,2460.1,2459.9,0.8539132]
[1730674606094,3.6584,2460.1,2459.9,0.8539132]
[1730674606296,7.3169,2460.1,2459.9,0.8539132]
[1730674606867,3.65853,2460.0,2459.9,0.8539132]
[1730674607965,3.65843,2460.1,2459.9,0.8539132]
[1730674610697,3.65837,2460.2,2459.9,0.8539132]
[1730674610905,3.65841,2460.1,2459.9,0.8539132]
[1730674624486,3.65818,2460.3,2459.9,0.8539132]
[1730674625156,3.65818,2460.3,2459.9,3.96509444]
[1730674625363,3.65826,2460.2,2460.0,0.70554571]
[1730674625564,3.65826,2460.2,2460.1,0.04099446]
[1730674625859,3.65826,2460.2,2459.9,3.21833196]
[1730674625860,3.65818,2460.3,2459.9,1.87098133]
[1730674626059,3.65817,2460.3,2460.0,0.04101298]
[1730674630459,3.65817,2460.3,2460.1,0.16335318]
[1730674630576,3.65817,2460.3,2460.0,0.20436616]
[1730674630889,3.65817,2460.3,2460.2,0.04097595]
[1730674631507,3.65817,2460.3,2460.0,0.16335318]
[1730674632004,3.65817,2460.3,2460.1,0.20434764]
[1730674632307,3.65817,2460.3,2460.1,0.04099446]
[1730674633088,3.65817,2460.3,2459.9,1.87100231]
[1730674633326,3.65817,2460.3,2460.0,0.20435914]
[1730674633481,3.65817,2460.3,2460.1,0.16352415]
[1730674633685,3.65817,2460.3,2460.0,0.04083499]
[1730674633686,3.65817,2460.3,2460.2,0.04079796]
[1730674633882,3.65817,2460.3,2460.1,0.16352415]
[1730674634114,3.65817,2460.3,2460.2,0.0407907]
[1730674634426,3.65817,2460.3,2460.1,0.16352415]
[1730674634714,3.65817,2460.3,2460.2,0.0407907]
[1730674634880,3.65817,2460.3,2460.1,0.16353457]
[1730674635079,3.65817,2460.3,2460.2,0.0407907]
[1730674635311,3.65817,2460.3,2460.1,0.16353457]
[1730674635521,3.65817,2460.3,2460.0,1.2219082]
[1730674635674,3.65817,2460.3,2460.1,0.20434378]
[1730674636281,3.65817,2460.3,2460.2,0.16353457]
[1730674636642,3.65817,2460.3,2460.2,0.0407798]
[1730674636988,3.65817,2460.3,2460.2,0.96704761]
[1730674637184,3.65817,2460.3,2460.2,0.8034798]
[1730674637520,3.65817,2460.3,2460.2,0.96704761]
[1730674637717,3.65817,2460.3,2460.2,0.0407798]
[1730674637888,3.65817,2460.3,2460.2,0.20434761]
[1730674638085,3.65817,2460.3,2460.2,0.0407798]
[1730674638320,3.65817,2460.3,2460.2,0.20434761]
[1730674638491,3.65817,2460.3,2460.2,0.0407798]
[1730674638681,3.65817,2460.3,2460.2,0.20434761]
[1730674638887,3.65817,2460.3,2460.2,0.0407798]
[1730674639187,3.65817,2460.3,2460.2,0.20434761]
[1730674639383,3.65817,2460.3,2460.2,0.0407798]
[1730674639729,3.65817,2460.3,2460.2,0.20434761]
[1730674640028,3.65817,2460.3,2460.2,0.0407798]
[1730674640182,3.65817,2460.3,2460.2,0.20434761]
[1730674640393,3.65817,2460.3,2460.2,0.0407798]
[1730674640594,3.65817,2460.3,2460.2,0.20434761]
[1730674640819,3.65817,2460.3,2460.2,0.0407798]
[1730674641020,3.65817,2460.3,2460.2,0.20435265]
[1730674641240,3.65735839,2460.3,2460.2,0.0407798]
[1730674641392,3.65735839,2460.3,2460.2,0.20435265]
[1730674641597,3.65735839,2460.3,2460.2,0.0407798]
[1730674641909,3.65735839,2460.3,2460.2,0.20435265]
[1730674642216,3.65735839,2460.3,2460.2,0.0407798]
[1730674642537,3.65735839,2460.3,2460.2,0.20435265]
[1730674642746,3.65735839,2460.3,2460.2,0.0407798]
[1730674642902,3.65735839,2460.3,2460.2,0.20435265]
[1730674643102,3.65735839,2460.3,2460.2,0.0407798]
[1730674643405,3.6579,2460.5,2460.3,0.7728]
[1730674643800,3.65762,2460.7,2460.4,0.03930496]
[1730674644031,4.47492,2460.8,2460.4,0.03930496]
[1730674644243,4.47492,2460.8,2460.4,0.66626433]
[1730674644850,3.65742,2460.8,2460.4,4.16061487]
[1730674645002,4.47463,2461.0,2460.5,0.7728]
[1730674645198,3.65736,2460.8,2460.5,0.7728]
[1730674645597,3.65736,2460.8,2460.6,0.03919541]
[1730674646738,3.65736,2460.8,2460.6,0.54887571]
[1730674648745,4.47463,2461.0,2460.6,0.54887571]
[1730674648928,3.65713,2461.0,2460.6,0.54887571]
[1730674649103,3.65713,2461.0,2460.6,4.20651571]
[1730674655242,3.65713,2461.0,2460.7,0.7728]
[1730674655447,3.65713,2461.0,2460.8,0.49793157]
[1730674655646,3.65713,2461.0,2460.8,0.03890094]
[1730674656053,3.65713,2461.0,2460.7,0.7728]
[1730674656225,3.65713,2461.0,2460.9,0.03888244]
[1730674656716,3.65713,2461.0,2460.7,0.7728]
[1730674656923,3.65713,2461.0,2460.9,0.03888606]
[1730674657113,3.65713,2461.0,2460.7,0.7728]
[1730674657315,4.47434,2461.2,2460.9,0.03888606]
[1730674657535,4.47434,2461.2,2460.8,0.5329166]
[1730674657728,4.47434,2461.2,2461.0,0.03886756]
[1730674657928,3.65684,2461.2,2461.0,0.03886756]
[1730674658152,3.65684,2461.2,2460.8,0.49401203]
[1730674658320,3.65684,2461.2,2461.1,0.03884906]
[1730674658518,7.31366,2461.2,2460.8,0.49401203]
[1730674658709,7.31366,2461.2,2461.1,0.03884906]
[1730674658710,3.65682,2461.2,2461.1,0.03884906]
[1730674658916,3.65682,2461.2,2460.8,0.49401203]
[1730674659181,3.65682,2461.2,2461.1,0.03884906]
[1730674659314,3.65682,2461.2,2460.8,0.49401203]
[1730674659512,3.65682,2461.2,2461.1,0.03884906]
[1730674659810,3.65682,2461.2,2460.8,0.49401203]
[1730674660013,3.65682,2461.2,2461.1,0.03884906]
[1730674660224,3.65682,2461.2,2460.8,0.49401203]
[1730674660434,3.65682,2461.2,2461.1,0.03884906]
[1730674660663,3.65682,2461.2,2460.8,0.49401203]
[1730674660823,3.65682,2461.2,2460.9,0.4924232]
[1730674661025,3.65682,2461.2,2460.9,0.53130926]
[1730674662014,4.46086,2461.4,2461.0,0.7531]
[1730674662451,4.46086,2461.4,2461.1,0.03884906]
[1730674662624,3.65656,2461.4,2461.1,0.03884906]
[1730674662960,3.65656,2461.4,2461.1,0.53299929]
[1730674664318,0.8043,2461.6,2461.1,0.53299929]
[1730674664653,3.65654,2461.4,2461.1,0.53299929]
[1730674666642,3.65654,2461.4,2461.0,0.56570929]
[1730674666859,3.65654,2461.4,2461.2,0.03735798]
[1730674667047,3.65654,2461.4,2461.1,0.03737648]
[1730674667357,3.65654,2461.4,2461.2,0.03735798]
[1730674667569,3.65654,2461.4,2461.0,0.56570929]
[1730674667862,3.65654,2461.4,2461.3,0.03733948]
[1730674668023,3.65654,2461.4,2461.0,0.56570929]
[1730674668223,3.65654,2461.4,2461.3,0.03733948]
[1730674668425,3.65654,2461.4,2461.0,0.56570929]
[1730674668632,3.65654,2461.4,2461.3,0.03731281]
[1730674668842,3.65654,2461.4,2461.0,0.56570929]
[1730674669023,3.65654,2461.4,2461.3,0.03731281]
[1730674669223,3.65654,2461.4,2461.0,4.22272929]
[1730674669428,3.65654,2461.4,2461.3,0.03731281]
[1730674669625,3.65654,2461.4,2461.0,4.30398892]
[1730674669939,3.65618,2461.6,2461.3,0.7531]
[1730674670337,4.46016,2461.8,2461.3,0.7531]
[1730674670338,7.84017,2461.8,2461.4,0.03729432]
[1730674670563,3.65587,2461.8,2461.4,3.69366432]
[1730674670801,3.65587,2461.8,2461.4,4.56510329]
[1730674671264,3.65587,2461.8,2461.5,0.7531]
[1730674671667,3.65587,2461.8,2461.6,0.03711599]
[1730674672861,7.03572,2461.9,2461.6,0.03711599]
[1730674676194,3.65572,2461.9,2461.6,0.03711599]
[1730674678496,3.65558,2462.0,2461.6,0.93455549]
[1730674678659,3.65558,2462.0,2461.7,0.7531]
[1730674679055,3.65558,2462.0,2461.8,0.03675287]
[1730674679502,3.65558,2462.0,2461.7,0.7531]
[1730674679664,3.65558,2462.0,2461.9,0.03673438]
[1730674680066,3.65558,2462.0,2461.7,0.7531]
[1730674680406,3.65558,2462.0,2461.7,1.36028442]
[1730674680599,3.65558,2462.0,2461.8,0.03675287]
[1730674680804,3.65558,2462.0,2461.7,0.7531]
[1730674681006,3.65558,2462.0,2461.9,0.03670178]
[1730674681296,3.65558,2462.0,2461.7,0.7531]
[1730674681463,3.65558,2462.0,2461.9,0.03670178]
[1730674681663,3.65558,2462.0,2461.8,0.03672027]
[1730674681895,3.65558,2462.0,2461.9,0.03670178]
[1730674682097,7.31078,2462.2,2461.7,0.7531]
[1730674682301,7.31078,2462.2,2461.8,0.806529]
[1730674682500,7.31078,2462.2,2461.8,0.03672027]
[1730674682875,3.65537,2462.2,2461.8,1.66255418]
[1730674683008,3.65537,2462.2,2461.9,0.78976555]
[1730674683868,7.31018,2462.4,2461.9,0.78976555]
[1730674684089,3.65513,2462.3,2461.9,5.06441822]
[1730674684693,3.65508,2462.4,2461.9,5.06441822]
[1730674684864,3.65508,2462.4,2462.0,3.65556]
[1730674685306,3.65508,2462.4,2462.1,0.0365996]
[1730674685514,3.65484,2462.5,2462.2,0.7531]
[1730674685670,7.30955,2462.6,2462.3,0.03656263]
[1730674685876,7.30955,2462.6,2462.2,0.7531]
[1730674686206,3.65477,2462.6,2462.3,0.0363453]
[1730674686505,3.65477,2462.6,2462.4,0.03632682]
[1730674686870,3.65477,2462.6,2462.2,0.7531]
[1730674687064,3.65477,2462.6,2462.5,0.03630834]
[1730674687265,7.30899,2462.8,2462.2,6.07089418]
[1730674687485,3.65449,2462.8,2462.3,3.65509]
[1730674687692,7.30894,2462.8,2462.3,3.6914353]
[1730674687972,3.65454,2462.7,2462.4,0.7893]
[1730674688193,3.65454,2462.7,2462.4,0.82806639]
[1730674688386,3.65424,2462.9,2462.4,5.47116325]
[1730674689103,3.65419,2463.0,2462.6,0.7893]
[1730674689470,3.65419,2463.0,2462.7,0.04158002]
[1730674689872,4.48708,2463.2,2462.7,3.69604002]
[1730674690183,8.141,2463.2,2462.7,3.69604002]